[Event "Live Chess"]
[Site "Chess.com"]
[Date "2023.05.20"]
[Round "-"]
[White "raminguy"]
[Black "luckywookie"]
[Result "1-0"]
[WhiteElo "1985"]
[BlackElo "729"]
[TimeControl "300"]
[EndTime "11:00:11 PDT"]
[Termination "raminguy won by checkmate"]

1. d4 {[%clk 0:04:58.8]} 1... c6 {[%clk 0:04:58.1]} 2. Nc3 {[%clk 0:04:58.3]}
2... d5 {[%clk 0:04:57]} 3. Bf4 {[%clk 0:04:57.9]} 3... e6 {[%clk 0:04:49]} 4.
e3 {[%clk 0:04:57]} 4... Ne7 {[%clk 0:04:46.8]} 5. Nf3 {[%clk 0:04:56.5]} 5...
Nf5 {[%clk 0:04:45.6]} 6. Bd3 {[%clk 0:04:54.9]} 6... Bd6 {[%clk 0:04:42.3]} 7.
Ne5 {[%clk 0:04:53.4]} 7... Bxe5 {[%clk 0:04:40.4]} 8. Bxe5 {[%clk 0:04:52]}
8... f6 {[%clk 0:04:38.1]} 9. Bf4 {[%clk 0:04:47.2]} 9... e5 {[%clk 0:04:37.1]}
10. dxe5 {[%clk 0:04:44.7]} 10... fxe5 {[%clk 0:04:30.7]} 11. Bxe5 {[%clk
0:04:41.8]} 11... Nd7 {[%clk 0:04:20.1]} 12. Bg3 {[%clk 0:04:37.5]} 12... Nxg3
{[%clk 0:04:17.5]} 13. hxg3 {[%clk 0:04:36.3]} 13... Ne5 {[%clk 0:04:11.6]} 14.
Qh5+ {[%clk 0:04:21.7]} 14... g6 {[%clk 0:04:09.6]} 15. Bxg6+ {[%clk 0:04:19.2]}
15... hxg6 {[%clk 0:04:07.4]} 16. Qxh8+ {[%clk 0:04:18.2]} 16... Kd7 {[%clk
0:04:06.6]} 17. Rh7+ {[%clk 0:04:17.5]} 17... Kd6 {[%clk 0:04:01.4]} 18. Qxd8+
{[%clk 0:04:16]} 18... Bd7 {[%clk 0:04:00.2]} 19. Rxd7+ {[%clk 0:04:13.2]} 19...
Nxd7 {[%clk 0:03:58.4]} 20. Qxa8 {[%clk 0:04:12.3]} 20... d4 {[%clk 0:03:53.6]}
21. O-O-O {[%clk 0:04:10.6]} 21... Kc5 {[%clk 0:03:50.2]} 22. Qxa7+ {[%clk
0:04:06.5]} 22... b6 {[%clk 0:03:48.1]} 23. exd4+ {[%clk 0:04:05.1]} 23... Kc4
{[%clk 0:03:43.4]} 24. Qa4# {[%clk 0:04:03.4]} 1-0

[Event "Live Chess"]
[Site "Chess.com"]
[Date "2023.05.20"]
[Round "-"]
[White "Chesscoach_Golichenko"]
[Black "Daniel_Gliddon_FA"]
[Result "1-0"]
[WhiteElo "2653"]
[BlackElo "1280"]
[TimeControl "300"]
[EndTime "11:00:21 PDT"]
[Termination "Chesscoach_Golichenko won by resignation"]

1. d4 {[%clk 0:04:57.1]} 1... Nf6 {[%clk 0:04:56.8]} 2. c4 {[%clk 0:04:55.8]}
2... g6 {[%clk 0:04:55.3]} 3. Nc3 {[%clk 0:04:52.5]} 3... d5 {[%clk 0:04:54.1]}
4. cxd5 {[%clk 0:04:50.9]} 4... Nxd5 {[%clk 0:04:52.6]} 5. e4 {[%clk 0:04:50.8]}
5... Nxc3 {[%clk 0:04:51.3]} 6. bxc3 {[%clk 0:04:50.7]} 6... Bg7 {[%clk
0:04:47]} 7. Bc4 {[%clk 0:04:50.1]} 7... c5 {[%clk 0:04:45.3]} 8. Ne2 {[%clk
0:04:48.7]} 8... Nc6 {[%clk 0:04:40.9]} 9. Be3 {[%clk 0:04:46.4]} 9... Qa5
{[%clk 0:04:31.4]} 10. O-O {[%clk 0:04:40]} 10... cxd4 {[%clk 0:04:29.2]} 11.
cxd4 {[%clk 0:04:38.5]} 11... Bg4 {[%clk 0:04:19.9]} 12. f3 {[%clk 0:04:34.4]}
12... Bd7 {[%clk 0:04:17.6]} 13. Rb1 {[%clk 0:04:32.4]} 13... b6 {[%clk
0:04:10.5]} 14. a4 {[%clk 0:04:19.9]} 14... Nb4 {[%clk 0:03:57.5]} 15. Bd2
{[%clk 0:04:12.6]} 15... Bxa4 {[%clk 0:03:51.7]} 16. Qe1 {[%clk 0:04:02.4]}
16... Nc2 {[%clk 0:03:49.3]} 17. Bxa5 {[%clk 0:03:59.6]} 17... Nxe1 {[%clk
0:03:47.6]} 18. Bxe1 {[%clk 0:03:59.5]} 18... Bc2 {[%clk 0:03:39.3]} 19. Rb4
{[%clk 0:03:55.4]} 19... O-O {[%clk 0:03:34.4]} 20. Bf2 {[%clk 0:03:53.3]} 20...
e6 {[%clk 0:03:31.2]} 21. Rc1 {[%clk 0:03:52.2]} 1-0

[Event "Live Chess"]
[Site "Chess.com"]
[Date "2023.05.20"]
[Round "-"]
[White "chessleanstrategist"]
[Black "DerbyKnight"]
[Result "0-1"]
[WhiteElo "390"]
[BlackElo "1599"]
[TimeControl "300"]
[EndTime "11:00:25 PDT"]
[Termination "DerbyKnight won by resignation"]

1. c4 {[%clk 0:04:58.4]} 1... e6 {[%clk 0:04:58.5]} 2. g3 {[%clk 0:04:57.4]}
2... d5 {[%clk 0:04:58.4]} 3. b3 {[%clk 0:04:51.3]} 3... Nf6 {[%clk 0:04:55.6]}
4. d4 {[%clk 0:04:48.9]} 4... Bb4+ {[%clk 0:04:49.8]} 5. Bd2 {[%clk 0:04:46.7]}
5... a5 {[%clk 0:04:43.5]} 6. Bxb4 {[%clk 0:04:45.5]} 6... axb4 {[%clk
0:04:40.5]} 7. Bg2 {[%clk 0:04:36.5]} 7... O-O {[%clk 0:04:37.3]} 8. Nf3 {[%clk
0:04:35]} 8... Ne4 {[%clk 0:04:25.8]} 9. O-O {[%clk 0:04:20]} 9... Nc6 {[%clk
0:04:15.8]} 10. Nfd2 {[%clk 0:04:18.8]} 10... Nxd4 {[%clk 0:03:59.6]} 11. Nxe4
{[%clk 0:04:09.8]} 11... dxe4 {[%clk 0:03:51.9]} 12. Bxe4 {[%clk 0:03:51]} 12...
e5 {[%clk 0:03:37.5]} 13. e3 {[%clk 0:03:48.4]} 13... Ne6 {[%clk 0:03:25]} 14.
Bg2 {[%clk 0:03:46.9]} 14... Nc5 {[%clk 0:03:12.4]} 15. Qc2 {[%clk 0:03:23.2]}
15... Qe7 {[%clk 0:03:00.2]} 16. Nd2 {[%clk 0:03:15.6]} 16... f5 {[%clk
0:02:50.1]} 17. f4 {[%clk 0:03:06.9]} 17... e4 {[%clk 0:02:47.6]} 18. a4 {[%clk
0:02:48.8]} 18... bxa3 {[%clk 0:02:42.6]} 19. Nb1 {[%clk 0:02:36.3]} 19... Nd3
{[%clk 0:02:39.7]} 20. Rxa3 {[%clk 0:02:20.4]} 20... Rxa3 {[%clk 0:02:36.6]} 21.
Nxa3 {[%clk 0:02:18.8]} 21... Qxa3 {[%clk 0:02:34.7]} 22. Rd1 {[%clk 0:01:58.9]}
22... Be6 {[%clk 0:02:31.3]} 23. Rxd3 {[%clk 0:01:11]} 23... exd3 {[%clk
0:02:24.7]} 24. Qxd3 {[%clk 0:01:10.7]} 24... Qc1+ {[%clk 0:02:22.2]} 25. Kf2
{[%clk 0:01:08.5]} 25... c6 {[%clk 0:02:19]} 26. e4 {[%clk 0:00:55.5]} 26...
Qb2+ {[%clk 0:02:07.4]} 27. Kg1 {[%clk 0:00:44.7]} 27... Qf6 {[%clk 0:01:58]}
28. e5 {[%clk 0:00:38.7]} 28... Qe7 {[%clk 0:01:55.6]} 29. b4 {[%clk 0:00:28.1]}
29... Rd8 {[%clk 0:01:54.2]} 30. Qc2 {[%clk 0:00:20.5]} 30... Qd7 {[%clk
0:01:49.3]} 31. Kf2 {[%clk 0:00:15.3]} 31... Qd2+ {[%clk 0:01:46.4]} 32. Qxd2
{[%clk 0:00:15]} 32... Rxd2+ {[%clk 0:01:45.5]} 33. Ke1 {[%clk 0:00:14.2]} 33...
Rxg2 {[%clk 0:01:43.7]} 0-1

[Event "Live Chess"]
[Site "Chess.com"]
[Date "2023.05.20"]
[Round "-"]
[White "jameskwong"]
[Black "Ayush_prahlad_Gupta"]
[Result "0-1"]
[WhiteElo "2142"]
[BlackElo "1822"]
[TimeControl "300"]
[EndTime "11:00:34 PDT"]
[Termination "Ayush_prahlad_Gupta won by resignation"]

1. d4 {[%clk 0:04:58.7]} 1... d5 {[%clk 0:04:58.3]} 2. c4 {[%clk 0:04:57.3]}
2... Nf6 {[%clk 0:04:58.2]} 3. cxd5 {[%clk 0:04:55.9]} 3... Nxd5 {[%clk
0:04:58.1]} 4. e4 {[%clk 0:04:55.1]} 4... Nb6 {[%clk 0:04:56.4]} 5. Nc3 {[%clk
0:04:53.5]} 5... e5 {[%clk 0:04:54.9]} 6. d5 {[%clk 0:04:50.5]} 6... Bd6 {[%clk
0:04:52.8]} 7. Nf3 {[%clk 0:04:43]} 7... O-O {[%clk 0:04:52]} 8. Be2 {[%clk
0:04:38.9]} 8... f5 {[%clk 0:04:49.9]} 9. O-O {[%clk 0:04:35.5]} 9... f4 {[%clk
0:04:46.5]} 10. Ne1 {[%clk 0:04:11.3]} 10... Qf6 {[%clk 0:04:42.5]} 11. Bg4
{[%clk 0:04:06.5]} 11... N8d7 {[%clk 0:04:37.9]} 12. Nd3 {[%clk 0:03:52.1]}
12... Qg6 {[%clk 0:04:33.6]} 13. Be6+ {[%clk 0:03:41.9]} 13... Kh8 {[%clk
0:04:31.2]} 14. Kh1 {[%clk 0:03:38.6]} 14... Nf6 {[%clk 0:04:29.3]} 15. Bxc8
{[%clk 0:03:35.7]} 15... Nxc8 {[%clk 0:04:27.7]} 16. f3 {[%clk 0:03:30.5]} 16...
Ne7 {[%clk 0:04:25.6]} 17. b4 {[%clk 0:03:25.1]} 17... a6 {[%clk 0:04:23.3]} 18.
a4 {[%clk 0:03:22.3]} 18... Qh6 {[%clk 0:04:20.8]} 19. g3 {[%clk 0:02:50.8]}
19... Nh5 {[%clk 0:04:10.5]} 20. Kg2 {[%clk 0:02:48.1]} 20... Ng6 {[%clk
0:04:01.1]} 21. g4 {[%clk 0:02:35.3]} 21... Rf6 {[%clk 0:03:52.4]} 22. gxh5
{[%clk 0:02:29.4]} 22... Nh4+ {[%clk 0:03:48.7]} 23. Kf2 {[%clk 0:02:26.9]}
23... Qxh5 {[%clk 0:03:44.4]} 24. Ke2 {[%clk 0:02:20.9]} 24... Rg6 {[%clk
0:03:28]} 25. Rf2 {[%clk 0:02:02.4]} 25... Rg2 {[%clk 0:03:14.6]} 26. Rxg2
{[%clk 0:01:54.1]} 26... Qxf3+ {[%clk 0:03:12.2]} 27. Kd2 {[%clk 0:01:51.6]}
27... Qxg2+ {[%clk 0:03:03.9]} 28. Qe2 {[%clk 0:01:49.3]} 28... Nf3+ {[%clk
0:02:58.1]} 29. Kc2 {[%clk 0:01:30.5]} 29... Nd4+ {[%clk 0:02:56.1]} 0-1

[Event "Live Chess"]
[Site "Chess.com"]
[Date "2023.05.20"]
[Round "-"]
[White "Prijmak"]
[Black "Zeraora719"]
[Result "1-0"]
[WhiteElo "1042"]
[BlackElo "796"]
[TimeControl "300"]
[EndTime "11:00:42 PDT"]
[Termination "Prijmak won by resignation"]

1. e4 {[%clk 0:04:58.6]} 1... e5 {[%clk 0:04:56.4]} 2. Nf3 {[%clk 0:04:57.5]}
2... Nc6 {[%clk 0:04:54.6]} 3. Bc4 {[%clk 0:04:55.9]} 3... f6 {[%clk 0:04:38]}
4. O-O {[%clk 0:04:43.6]} 4... Nge7 {[%clk 0:04:21.8]} 5. Nc3 {[%clk 0:04:40.9]}
5... d5 {[%clk 0:04:19.3]} 6. exd5 {[%clk 0:04:36.3]} 6... Nxd5 {[%clk
0:04:17.7]} 7. Nxd5 {[%clk 0:04:34.6]} 7... Qxd5 {[%clk 0:04:14.1]} 8. Bxd5
{[%clk 0:04:33]} 8... Be6 {[%clk 0:04:12.4]} 9. Bxe6 {[%clk 0:04:31.5]} 9... Nd8
{[%clk 0:04:05.9]} 10. Bd5 {[%clk 0:04:28.4]} 10... Nc6 {[%clk 0:04:04.7]} 11.
Bxc6+ {[%clk 0:04:26.8]} 11... Kd8 {[%clk 0:04:00.5]} 12. Bxb7 {[%clk
0:04:24.5]} 12... Rc8 {[%clk 0:03:57.8]} 13. Bxc8 {[%clk 0:04:22.5]} 13... Ke7
{[%clk 0:03:56.3]} 14. d4 {[%clk 0:04:17.8]} 14... e4 {[%clk 0:03:54.4]} 15. Ne1
{[%clk 0:04:15.3]} 15... f5 {[%clk 0:03:51.9]} 16. c3 {[%clk 0:04:09.7]} 1-0

[Event "Live Chess"]
[Site "Chess.com"]
[Date "2023.05.20"]
[Round "-"]
[White "FlyingChessKestrel13"]
[Black "Driftboard"]
[Result "1-0"]
[WhiteElo "2139"]
[BlackElo "695"]
[TimeControl "300"]
[EndTime "11:00:44 PDT"]
[Termination "FlyingChessKestrel13 won by checkmate"]

1. e4 {[%clk 0:04:58.5]} 1... e5 {[%clk 0:04:58.9]} 2. d4 {[%clk 0:04:57.9]}
2... exd4 {[%clk 0:04:57.6]} 3. c3 {[%clk 0:04:57.3]} 3... dxc3 {[%clk
0:04:55.5]} 4. Bc4 {[%clk 0:04:56.3]} 4... cxb2 {[%clk 0:04:54.4]} 5. Bxb2
{[%clk 0:04:55.7]} 5... Nf6 {[%clk 0:04:50]} 6. e5 {[%clk 0:04:54.4]} 6... Ng8
{[%clk 0:04:48.2]} 7. Nf3 {[%clk 0:04:44.9]} 7... Bb4+ {[%clk 0:04:42.3]} 8. Kf1
{[%clk 0:04:43.1]} 8... d6 {[%clk 0:04:38.3]} 9. Qb3 {[%clk 0:04:39.2]} 9... Bc5
{[%clk 0:04:32.6]} 10. exd6 {[%clk 0:04:35.9]} 10... Qxd6 {[%clk 0:04:28.2]} 11.
Bxg7 {[%clk 0:04:28.2]} 11... Nf6 {[%clk 0:04:04.7]} 12. Bxf7+ {[%clk 0:04:09]}
12... Kd7 {[%clk 0:03:53]} 13. Bxh8 {[%clk 0:04:00.5]} 13... Ne4 {[%clk
0:03:31.2]} 14. Nbd2 {[%clk 0:03:44.6]} 14... Nxf2 {[%clk 0:03:27.4]} 15. Ne5+
{[%clk 0:02:53.9]} 15... Ke7 {[%clk 0:02:57.5]} 16. Qg3 {[%clk 0:02:36.3]} 16...
Nxh1 {[%clk 0:02:47.7]} 17. Qg5+ {[%clk 0:02:34.1]} 17... Kf8 {[%clk 0:02:38.8]}
18. Bg7# {[%clk 0:02:31.9]} 1-0

[Event "Live Chess"]
[Site "Chess.com"]
[Date "2023.05.20"]
[Round "-"]
[White "booktrunk"]
[Black "OceanFloater"]
[Result "1-0"]
[WhiteElo "1335"]
[BlackElo "986"]
[TimeControl "300"]
[EndTime "11:00:46 PDT"]
[Termination "booktrunk won by resignation"]

1. d4 {[%clk 0:04:58.8]} 1... c6 {[%clk 0:04:59.6]} 2. Nf3 {[%clk 0:04:56.2]}
2... d5 {[%clk 0:04:59.3]} 3. c3 {[%clk 0:04:54.8]} 3... Bf5 {[%clk 0:04:58.4]}
4. Bf4 {[%clk 0:04:53.6]} 4... e6 {[%clk 0:04:56.7]} 5. h3 {[%clk 0:04:52.3]}
5... Ne7 {[%clk 0:04:54.7]} 6. e3 {[%clk 0:04:51.4]} 6... Ng6 {[%clk 0:04:53.5]}
7. Bh2 {[%clk 0:04:49.9]} 7... c5 {[%clk 0:04:48.9]} 8. Na3 {[%clk 0:04:46.3]}
8... c4 {[%clk 0:04:45.7]} 9. Nb5 {[%clk 0:04:32.4]} 9... a6 {[%clk 0:04:44.2]}
10. Qa4 {[%clk 0:04:21.4]} 10... axb5 {[%clk 0:04:22.9]} 11. Qxa8 {[%clk
0:04:19.8]} 11... Nc6 {[%clk 0:04:17.9]} 12. Qxb7 {[%clk 0:04:17.3]} 12... Bd6
{[%clk 0:04:10.4]} 13. Qxc6+ {[%clk 0:04:15.8]} 13... Ke7 {[%clk 0:04:01.4]} 14.
Qxb5 {[%clk 0:04:12.7]} 14... Bxh2 {[%clk 0:03:52.8]} 15. Nxh2 {[%clk
0:04:08.8]} 15... e5 {[%clk 0:03:48.5]} 16. Qb4+ {[%clk 0:04:04.6]} 16... Ke6
{[%clk 0:03:39.8]} 17. dxe5 {[%clk 0:04:03.7]} 17... Nxe5 {[%clk 0:03:38.6]} 18.
Qb6+ {[%clk 0:03:59.2]} 18... Ke7 {[%clk 0:03:35.3]} 19. Qd4 {[%clk 0:03:57.6]}
19... Nd3+ {[%clk 0:03:31.3]} 20. Bxd3 {[%clk 0:03:55.6]} 20... cxd3 {[%clk
0:03:30.1]} 21. g4 {[%clk 0:03:46.7]} 21... Be4 {[%clk 0:03:26.3]} 22. f3 {[%clk
0:03:44.6]} 22... Bg6 {[%clk 0:03:19.4]} 23. Rd1 {[%clk 0:03:41.4]} 23... Re8
{[%clk 0:03:15.8]} 24. h4 {[%clk 0:03:38.8]} 24... h6 {[%clk 0:03:14]} 25. Kf2
{[%clk 0:03:34.4]} 25... Kf8 {[%clk 0:03:10.9]} 26. Rhe1 {[%clk 0:03:32.4]}
26... Qa5 {[%clk 0:03:05.2]} 27. a3 {[%clk 0:03:27.8]} 27... Kg8 {[%clk
0:03:02.4]} 28. Qb4 {[%clk 0:03:16.5]} 28... Qa6 {[%clk 0:02:57.5]} 29. Rd2
{[%clk 0:03:10.3]} 29... d4 {[%clk 0:02:32.4]} 30. Qxd4 {[%clk 0:03:06.3]} 30...
Qb5 {[%clk 0:02:24.5]} 31. a4 {[%clk 0:03:02.7]} 31... Qa6 {[%clk 0:02:20.4]}
32. b3 {[%clk 0:02:57.1]} 32... Qb7 {[%clk 0:02:16.3]} 33. b4 {[%clk 0:02:52.9]}
33... Qa6 {[%clk 0:02:13.6]} 34. b5 {[%clk 0:02:50.4]} 34... Qe6 {[%clk
0:02:11.4]} 35. a5 {[%clk 0:02:47]} 35... Qb3 {[%clk 0:02:09.6]} 36. b6 {[%clk
0:02:45.2]} 36... Ra8 {[%clk 0:02:03.6]} 37. Ra1 {[%clk 0:02:42.8]} 37... Ra6
{[%clk 0:01:55]} 38. Qd7 {[%clk 0:02:38.3]} 38... Qxc3 {[%clk 0:01:47.5]} 39.
Rda2 {[%clk 0:02:31.5]} 39... d2 {[%clk 0:01:35.7]} 40. Rxd2 {[%clk 0:02:28]}
40... Qxa1 {[%clk 0:01:33]} 41. Qc8+ {[%clk 0:02:25.6]} 41... Kh7 {[%clk
0:01:26]} 42. Qxa6 {[%clk 0:02:24]} 42... Qc3 {[%clk 0:01:25]} 43. Qe2 {[%clk
0:02:21.3]} 43... Qxa5 {[%clk 0:01:23]} 44. Rb2 {[%clk 0:02:18.9]} 44... Qa3
{[%clk 0:01:13.1]} 45. b7 {[%clk 0:02:17.2]} 45... Bd3 {[%clk 0:01:01.2]} 46.
Qd2 {[%clk 0:02:16.2]} 46... Bb5 {[%clk 0:00:32.8]} 47. b8=Q {[%clk 0:02:10.4]}
47... Qe7 {[%clk 0:00:22.4]} 48. Qxb5 {[%clk 0:02:05.8]} 1-0

[Event "Live Chess"]
[Site "Chess.com"]
[Date "2023.05.20"]
[Round "-"]
[White "garyjc"]
[Black "HoarseyHorsey"]
[Result "0-1"]
[WhiteElo "1033"]
[BlackElo "1386"]
[TimeControl "300"]
[EndTime "11:00:53 PDT"]
[Termination "HoarseyHorsey won on time"]

1. e4 {[%clk 0:04:57.9]} 1... c5 {[%clk 0:04:58.7]} 2. Nc3 {[%clk 0:04:55.3]}
2... Nc6 {[%clk 0:04:57.2]} 3. f4 {[%clk 0:04:54.2]} 3... g6 {[%clk 0:04:55.3]}
4. Bb5 {[%clk 0:04:46]} 4... Bg7 {[%clk 0:04:48.8]} 5. Nf3 {[%clk 0:04:42.5]}
5... e6 {[%clk 0:04:47.2]} 6. O-O {[%clk 0:04:40.6]} 6... Nge7 {[%clk
0:04:46.1]} 7. d3 {[%clk 0:04:36.8]} 7... O-O {[%clk 0:04:44.2]} 8. Qe1 {[%clk
0:04:30.1]} 8... d6 {[%clk 0:04:36.9]} 9. Qh4 {[%clk 0:04:25]} 9... f6 {[%clk
0:04:22.4]} 10. f5 {[%clk 0:04:10.1]} 10... exf5 {[%clk 0:04:19.1]} 11. Bh6
{[%clk 0:03:53.7]} 11... Bd7 {[%clk 0:03:54.9]} 12. Bxg7 {[%clk 0:03:47]} 12...
Kxg7 {[%clk 0:03:54.8]} 13. Bxc6 {[%clk 0:03:22.1]} 13... bxc6 {[%clk 0:03:49]}
14. Rae1 {[%clk 0:03:18.2]} 14... Rb8 {[%clk 0:03:47.1]} 15. b3 {[%clk
0:03:16.2]} 15... d5 {[%clk 0:03:35.4]} 16. exf5 {[%clk 0:03:06.2]} 16... Nxf5
{[%clk 0:03:33]} 17. Qa4 {[%clk 0:02:56.6]} 17... Qc7 {[%clk 0:03:19.6]} 18. Qa3
{[%clk 0:02:03.3]} 18... Qd6 {[%clk 0:02:36.7]} 19. Qxa7 {[%clk 0:01:57.9]}
19... c4 {[%clk 0:02:24.3]} 20. dxc4 {[%clk 0:01:50.6]} 20... d4 {[%clk
0:02:19]} 21. Ne4 {[%clk 0:01:46.5]} 21... Qf4 {[%clk 0:01:43]} 22. Qxd7+ {[%clk
0:01:37]} 22... Kh6 {[%clk 0:01:42]} 23. Nxd4 {[%clk 0:01:02.8]} 23... Qe5
{[%clk 0:01:35.7]} 24. Ng3 {[%clk 0:00:52.9]} 24... Qc5 {[%clk 0:01:30.9]} 25.
Nxf5+ {[%clk 0:00:48.5]} 25... gxf5 {[%clk 0:01:30.8]} 26. Rxf5 {[%clk
0:00:38.4]} 26... Rbd8 {[%clk 0:01:23.8]} 27. Qxd8 {[%clk 0:00:12.5]} 27... Rxd8
{[%clk 0:01:21.6]} 28. Rxc5 {[%clk 0:00:09.8]} 28... Rxd4 {[%clk 0:01:20.2]} 29.
Re6 {[%clk 0:00:07.6]} 29... Kg6 {[%clk 0:01:18.7]} 30. Kf2 {[%clk 0:00:06.5]}
30... Rd2+ {[%clk 0:01:17.8]} 31. Ke3 {[%clk 0:00:05.1]} 31... Rxc2 {[%clk
0:01:17.7]} 32. Rcxc6 {[%clk 0:00:04.2]} 32... Rxa2 {[%clk 0:01:16.9]} 33. Rxf6+
{[%clk 0:00:03.3]} 33... Kg5 {[%clk 0:01:15.1]} 34. Rh6 {[%clk 0:00:01.4]} 34...
Re2+ {[%clk 0:01:13.6]} 0-1

[Event "Live Chess"]
[Site "Chess.com"]
[Date "2023.05.20"]
[Round "-"]
[White "mattihelenius2"]
[Black "jennybobby44"]
[Result "0-1"]
[WhiteElo "450"]
[BlackElo "1851"]
[TimeControl "300"]
[EndTime "11:00:55 PDT"]
[Termination "jennybobby44 won by resignation"]

1. d4 {[%clk 0:04:57.5]} 1... Nf6 {[%clk 0:04:59.3]} 2. c3 {[%clk 0:04:56.4]}
2... d5 {[%clk 0:04:58.1]} 3. Nf3 {[%clk 0:04:52.4]} 3... c5 {[%clk 0:04:55.6]}
4. dxc5 {[%clk 0:04:45.6]} 4... e6 {[%clk 0:04:52.3]} 5. Ne5 {[%clk 0:04:42.6]}
5... Bxc5 {[%clk 0:04:49.6]} 6. b4 {[%clk 0:04:35.3]} 6... Bb6 {[%clk 0:04:48]}
7. Nd2 {[%clk 0:04:33.7]} 7... Nc6 {[%clk 0:04:46.8]} 8. e3 {[%clk 0:04:32.6]}
8... Nxe5 {[%clk 0:04:45.6]} 9. f4 {[%clk 0:04:29.3]} 9... Ng6 {[%clk 0:04:44]}
10. Bb5+ {[%clk 0:04:24.9]} 10... Bd7 {[%clk 0:04:42.9]} 11. Bd3 {[%clk
0:04:22.2]} 11... Bxe3 {[%clk 0:04:37.3]} 12. Qe2 {[%clk 0:04:18.4]} 12... Bxf4
{[%clk 0:04:32.5]} 0-1

[Event "Live Chess"]
[Site "Chess.com"]
[Date "2023.05.20"]
[Round "-"]
[White "LL220284LL"]
[Black "Geomorph"]
[Result "1-0"]
[WhiteElo "2380"]
[BlackElo "1215"]
[TimeControl "300"]
[EndTime "11:01:01 PDT"]
[Termination "LL220284LL won by checkmate"]

1. b3 {[%clk 0:04:57.8]} 1... e5 {[%clk 0:04:58.2]} 2. Bb2 {[%clk 0:04:57.7]}
2... Nc6 {[%clk 0:04:53.2]} 3. Nf3 {[%clk 0:04:56.1]} 3... d6 {[%clk 0:04:36.4]}
4. e4 {[%clk 0:04:53.2]} 4... Bg4 {[%clk 0:04:34.7]} 5. h3 {[%clk 0:04:51.8]}
5... Bh5 {[%clk 0:04:31.4]} 6. g4 {[%clk 0:04:45.9]} 6... Bg6 {[%clk 0:04:30.5]}
7. d3 {[%clk 0:04:45.5]} 7... Be7 {[%clk 0:04:27.6]} 8. Bg2 {[%clk 0:04:39.4]}
8... h5 {[%clk 0:04:12.2]} 9. Nbd2 {[%clk 0:04:29.7]} 9... hxg4 {[%clk
0:04:08.9]} 10. hxg4 {[%clk 0:04:29.6]} 10... Rxh1+ {[%clk 0:04:07.6]} 11. Bxh1
{[%clk 0:04:28.4]} 11... Nh6 {[%clk 0:04:03]} 12. Ng1 {[%clk 0:04:20]} 12... Qd7
{[%clk 0:03:53.6]} 13. Bf3 {[%clk 0:04:17.6]} 13... Nd4 {[%clk 0:03:47.2]} 14.
Bxd4 {[%clk 0:04:16.1]} 14... exd4 {[%clk 0:03:46.4]} 15. Qe2 {[%clk 0:04:15.2]}
15... O-O-O {[%clk 0:03:41]} 16. O-O-O {[%clk 0:04:14.2]} 16... Re8 {[%clk
0:03:37.6]} 17. Nf1 {[%clk 0:04:08]} 17... d5 {[%clk 0:03:36.8]} 18. Kb1 {[%clk
0:04:04.6]} 18... Ba3 {[%clk 0:03:34.3]} 19. Qd2 {[%clk 0:03:59.5]} 19... Nxg4
{[%clk 0:03:04.3]} 20. Bxg4 {[%clk 0:03:54.5]} 20... Qxg4 {[%clk 0:03:03.3]} 21.
Ng3 {[%clk 0:03:54.2]} 21... Qe6 {[%clk 0:02:16.9]} 22. Qa5 {[%clk 0:03:50.3]}
22... Bc5 {[%clk 0:02:02.3]} 23. Qxc5 {[%clk 0:03:45.5]} 23... dxe4 {[%clk
0:01:55.2]} 24. dxe4 {[%clk 0:03:41.6]} 24... Bxe4 {[%clk 0:01:53.9]} 25. Nxe4
{[%clk 0:03:40.5]} 25... Qxe4 {[%clk 0:01:53.1]} 26. Qxa7 {[%clk 0:03:39.6]}
26... c5 {[%clk 0:01:36.5]} 27. Qxc5+ {[%clk 0:03:35.4]} 27... Kb8 {[%clk
0:01:35.7]} 28. Kb2 {[%clk 0:03:26.4]} 28... Rc8 {[%clk 0:01:29.7]} 29. Qd6+
{[%clk 0:03:22.1]} 29... Ka8 {[%clk 0:01:28.3]} 30. Rd2 {[%clk 0:03:19.6]} 30...
Qe1 {[%clk 0:01:19.5]} 31. Nf3 {[%clk 0:03:14.1]} 31... Qe4 {[%clk 0:01:05.3]}
32. Nxd4 {[%clk 0:03:11.2]} 32... g6 {[%clk 0:00:39]} 33. Nb5 {[%clk 0:03:09.1]}
33... Qe1 {[%clk 0:00:27.3]} 34. Qa3+ {[%clk 0:03:07.8]} 34... Kb8 {[%clk
0:00:25.3]} 35. Qa7# {[%clk 0:03:07.7]} 1-0

[Event "Live Chess"]
[Site "Chess.com"]
[Date "2023.05.20"]
[Round "-"]
[White "Pablo_dmp"]
[Black "Brooms1989"]
[Result "1-0"]
[WhiteElo "1864"]
[BlackElo "1016"]
[TimeControl "300"]
[EndTime "11:01:02 PDT"]
[Termination "Pablo_dmp won by checkmate"]

1. e4 {[%clk 0:04:59.4]} 1... e5 {[%clk 0:04:57]} 2. Nc3 {[%clk 0:04:58.8]} 2...
Nf6 {[%clk 0:04:54.5]} 3. f4 {[%clk 0:04:58.4]} 3... d5 {[%clk 0:04:53.9]} 4.
fxe5 {[%clk 0:04:57.5]} 4... Nxe4 {[%clk 0:04:53.1]} 5. Qf3 {[%clk 0:04:57.2]}
5... Nxc3 {[%clk 0:04:49.9]} 6. bxc3 {[%clk 0:04:57.1]} 6... Nc6 {[%clk
0:04:49]} 7. d4 {[%clk 0:04:55]} 7... Be7 {[%clk 0:04:46.7]} 8. Bd3 {[%clk
0:04:52.9]} 8... Bg5 {[%clk 0:04:19.2]} 9. Ne2 {[%clk 0:04:50.1]} 9... Bxc1
{[%clk 0:04:16.2]} 10. Rxc1 {[%clk 0:04:50]} 10... Qg5 {[%clk 0:04:14.4]} 11.
O-O {[%clk 0:04:47.2]} 11... O-O {[%clk 0:04:11.5]} 12. Qxd5 {[%clk 0:04:36.3]}
12... Bh3 {[%clk 0:03:59.6]} 13. Ng3 {[%clk 0:04:31.6]} 13... Be6 {[%clk
0:03:57.5]} 14. Qe4 {[%clk 0:04:29.6]} 14... Qg6 {[%clk 0:03:48.1]} 15. d5
{[%clk 0:04:18.9]} 15... Qxe4 {[%clk 0:03:29.7]} 16. Bxe4 {[%clk 0:04:18.8]}
16... Nxe5 {[%clk 0:03:19.6]} 17. dxe6 {[%clk 0:04:17.8]} 17... fxe6 {[%clk
0:03:19.5]} 18. Rxf8+ {[%clk 0:04:15.4]} 18... Rxf8 {[%clk 0:03:19.4]} 19. Rf1
{[%clk 0:04:14.5]} 19... Rd8 {[%clk 0:03:11.9]} 20. Bxb7 {[%clk 0:04:12.6]}
20... Rd2 {[%clk 0:03:08.4]} 21. Ne4 {[%clk 0:04:10.9]} 21... Rxc2 {[%clk
0:03:06.3]} 22. Nc5 {[%clk 0:04:07.1]} 22... Rxc3 {[%clk 0:03:02.1]} 23. Nxe6
{[%clk 0:04:06]} 23... Nd3 {[%clk 0:02:54.8]} 24. Rf8# {[%clk 0:04:04.5]} 1-0